[Event "January 9 Late 2024"]
[Site "https://www.chess.com"]
[Date "2024.01.09"]
[Round "11"]
[White "Niedbala, Bartlomiej"]
[Black "Santos Latasa, Jaime"]
[Result "0-1"]
[Board "22"]
[TimeControl "180+1"]
[WhiteFideId "21834008"]
[BlackFideId "2293307"]
[WhiteElo "2712"]
[BlackElo "2887"]
[WhiteTeam "POL"]
[BlackTeam "ESP"]
[WhiteClock "0:00:00"]
[BlackClock "0:00:10"]

1. e4 {[%clk 0:03:00]}  c5 {[%clk 0:02:59]} 2. Nf3 {[%clk 0:03:00]}  Nc6 {[%clk 0:03:00]} 3. d4 {[%clk 0:03:00]}  cxd4 {[%clk 0:03:00]} 4. Nxd4 {[%clk 0:03:00]}  Nf6 {[%clk 0:03:01]} 5. Nc3 {[%clk 0:03:00]}  h5 {[%clk 0:03:01]} 6. Bc4 {[%clk 0:02:54]}  e6 {[%clk 0:02:56]} 7. O-O {[%clk 0:02:51]}  Qc7 {[%clk 0:02:52]} 8. Nxc6 {[%clk 0:02:20]}  bxc6 {[%clk 0:02:42]} 9. h3 {[%clk 0:02:18]}  d5 {[%clk 0:02:30]} 10. Bd3 {[%clk 0:02:17]}  Bc5 {[%clk 0:02:14]} 11. Qe2 {[%clk 0:02:14]}  Qe5 {[%clk 0:02:05]} 12. Kh1 {[%clk 0:02:02]}  Ng4 {[%clk 0:01:50]} 13. f4 {[%clk 0:01:59]}  Qd4 {[%clk 0:01:46]} 14. Nd1 {[%clk 0:01:47]}  Be7 {[%clk 0:01:30]} 15. c3 {[%clk 0:01:42]}  Qb6 {[%clk 0:01:28]} 16. Ne3 {[%clk 0:01:32]}  Nf6 {[%clk 0:01:23]} 17. e5 {[%clk 0:01:20]}  Nd7 {[%clk 0:01:21]} 18. b4 {[%clk 0:00:58]}  a5 {[%clk 0:01:17]} 19. b5 {[%clk 0:00:58]}  Nc5 {[%clk 0:01:14]} 20. Rb1 {[%clk 0:00:48]}  Nxd3 {[%clk 0:01:07]} 21. Qxd3 {[%clk 0:00:49]}  cxb5 {[%clk 0:01:07]} 22. f5 {[%clk 0:00:44]}  Qc6 {[%clk 0:00:59]} 23. fxe6 {[%clk 0:00:36]}  Bxe6 {[%clk 0:00:52]} 24. Rxb5 {[%clk 0:00:35]}  Rd8 {[%clk 0:00:36]} 25. Nc2 {[%clk 0:00:33]}  d4 {[%clk 0:00:20]} 26. Nxd4 {[%clk 0:00:34]}  Bc4 {[%clk 0:00:19]} 27. Qf5 {[%clk 0:00:35]}  Rxd4 {[%clk 0:00:18]} 28. cxd4 {[%clk 0:00:34]}  Qxb5 {[%clk 0:00:17]} 29. Qc8+ {[%clk 0:00:35]}  Bd8 {[%clk 0:00:18]} 30. Rg1 {[%clk 0:00:12]}  O-O {[%clk 0:00:17]} 31. Qf5 {[%clk 0:00:13]}  Be6 {[%clk 0:00:16]} 32. Qxh5 {[%clk 0:00:13]}  Qd3 {[%clk 0:00:16]} 33. Rd1 {[%clk 0:00:10]}  Qe4 {[%clk 0:00:16]} 34. Qf3 {[%clk 0:00:07]}  Qxf3 {[%clk 0:00:15]} 35. gxf3 {[%clk 0:00:08]}  Bxa2 {[%clk 0:00:15]} 36. d5 {[%clk 0:00:07]}  a4 {[%clk 0:00:15]} 37. Ba3 {[%clk 0:00:07]}  Re8 {[%clk 0:00:15]} 38. f4 {[%clk 0:00:08]}  Bb3 {[%clk 0:00:14]} 39. Rc1 {[%clk 0:00:07]}  g5 {[%clk 0:00:13]} 40. d6 {[%clk 0:00:05]}  Be6 {[%clk 0:00:11]} 41. Kh2 {[%clk 0:00:05]}  gxf4 {[%clk 0:00:11]} 42. Rg1+ {[%clk 0:00:04]}  Kh7 {[%clk 0:00:11]} 43. Bc1 {[%clk 0:00:04]}  f6 {[%clk 0:00:10]} 44. Bxf4 {[%clk 0:00:03]}  a3 {[%clk 0:00:10]} 45. Rg2 {[%clk 0:00:01]}  a2 {[%clk 0:00:10]} 46. Rg1 {[%clk 0:00:00]}  Rg8 {[%clk 0:00:10]} 0-1

[Event "January 9 Late 2024"]
[Site "https://www.chess.com"]
[Date "2024.01.09"]
[Round "11"]
[White "Pichot, Alan"]
[Black "Martins, Vinicius Tine"]
[Result "1/2-1/2"]
[Board "24"]
[TimeControl "180+1"]
[WhiteFideId "110973"]
[BlackFideId "2112884"]
[WhiteElo "2846"]
[BlackElo "2545"]
[WhiteTeam "ESP"]
[BlackTeam "BRA"]
[WhiteClock "0:00:07"]
[BlackClock "0:00:04"]

1. Nf3 {[%clk 0:02:55]}  d6 {[%clk 0:02:56]} 2. d4 {[%clk 0:02:53]}  Nf6 {[%clk 0:02:56]} 3. b3 {[%clk 0:02:49]}  c5 {[%clk 0:02:51]} 4. d5 {[%clk 0:02:49]}  g6 {[%clk 0:02:51]} 5. c4 {[%clk 0:02:48]}  Bg7 {[%clk 0:02:51]} 6. Bb2 {[%clk 0:02:49]}  O-O {[%clk 0:02:51]} 7. Nbd2 {[%clk 0:02:48]}  Re8 {[%clk 0:02:27]} 8. g3 {[%clk 0:02:47]}  b5 {[%clk 0:02:24]} 9. Bg2 {[%clk 0:02:36]}  bxc4 {[%clk 0:02:21]} 10. Nxc4 {[%clk 0:02:32]}  Nbd7 {[%clk 0:02:18]} 11. O-O {[%clk 0:02:23]}  a5 {[%clk 0:02:16]} 12. a4 {[%clk 0:01:59]}  Nb6 {[%clk 0:02:13]} 13. Nfd2 {[%clk 0:01:47]}  Nxc4 {[%clk 0:02:11]} 14. Nxc4 {[%clk 0:01:35]}  Ba6 {[%clk 0:02:11]} 15. Bc3 {[%clk 0:01:26]}  Bxc4 {[%clk 0:02:01]} 16. bxc4 {[%clk 0:01:26]}  Nd7 {[%clk 0:02:01]} 17. Bxg7 {[%clk 0:01:25]}  Kxg7 {[%clk 0:02:01]} 18. Rb1 {[%clk 0:01:25]}  Rb8 {[%clk 0:01:53]} 19. Rb5 {[%clk 0:01:20]}  Rxb5 {[%clk 0:01:53]} 20. axb5 {[%clk 0:01:21]}  Nb6 {[%clk 0:01:53]} 21. Qa1+ {[%clk 0:01:19]}  Kg8 {[%clk 0:01:49]} 22. Qxa5 {[%clk 0:01:13]}  Nxc4 {[%clk 0:01:48]} 23. Qc3 {[%clk 0:01:14]}  Nb6 {[%clk 0:01:45]} 24. Ra1 {[%clk 0:01:14]}  Qc7 {[%clk 0:01:44]} 25. Ra6 {[%clk 0:01:13]}  Ra8 {[%clk 0:01:43]} 26. Qa5 {[%clk 0:01:13]}  Rb8 {[%clk 0:01:35]} 27. Ra7 {[%clk 0:01:12]}  Qd8 {[%clk 0:01:33]} 28. e4 {[%clk 0:01:11]}  c4 {[%clk 0:01:31]} 29. Bf1 {[%clk 0:01:09]}  Rc8 {[%clk 0:01:21]} 30. Qc3 {[%clk 0:00:57]}  Nd7 {[%clk 0:01:12]} 31. Kg2 {[%clk 0:00:52]}  Nf6 {[%clk 0:01:06]} 32. Bxc4 {[%clk 0:00:46]}  Nxe4 {[%clk 0:01:03]} 33. Qd4 {[%clk 0:00:46]}  Nc5 {[%clk 0:00:40]} 34. Be2 {[%clk 0:00:43]}  Ra8 {[%clk 0:00:40]} 35. b6 {[%clk 0:00:36]}  Rxa7 {[%clk 0:00:36]} 36. bxa7 {[%clk 0:00:37]}  Qa5 {[%clk 0:00:36]} 37. h4 {[%clk 0:00:32]}  h5 {[%clk 0:00:35]} 38. g4 {[%clk 0:00:28]}  hxg4 {[%clk 0:00:33]} 39. Qxg4 {[%clk 0:00:28]}  Qxa7 {[%clk 0:00:30]} 40. h5 {[%clk 0:00:28]}  Qa4 {[%clk 0:00:29]} 41. Qg5 {[%clk 0:00:19]}  Qe4+ {[%clk 0:00:25]} 42. Bf3 {[%clk 0:00:19]}  Qf5 {[%clk 0:00:25]} 43. Qxe7 {[%clk 0:00:19]}  Qe5 {[%clk 0:00:19]} 44. Qxe5 {[%clk 0:00:09]}  dxe5 {[%clk 0:00:20]} 45. hxg6 {[%clk 0:00:07]}  fxg6 {[%clk 0:00:14]} 46. d6 {[%clk 0:00:07]}  Kf7 {[%clk 0:00:15]} 47. Bd5+ {[%clk 0:00:08]}  Ke8 {[%clk 0:00:15]} 48. Bc6+ {[%clk 0:00:06]}  Kf7 {[%clk 0:00:15]} 49. Bd5+ {[%clk 0:00:02]}  Ke8 {[%clk 0:00:15]} 50. Kg3 {[%clk 0:00:01]}  Kd7 {[%clk 0:00:15]} 51. Bf7 {[%clk 0:00:01]}  g5 {[%clk 0:00:12]} 52. Kg4 {[%clk 0:00:01]}  Kxd6 {[%clk 0:00:13]} 53. Kxg5 {[%clk 0:00:01]}  Ne4+ {[%clk 0:00:13]} 54. Kg4 {[%clk 0:00:02]}  Nxf2+ {[%clk 0:00:14]} 55. Kf5 {[%clk 0:00:02]}  Nd3 {[%clk 0:00:13]} 56. Bc4 {[%clk 0:00:02]}  Nc5 {[%clk 0:00:13]} 57. Bb5 {[%clk 0:00:02]}  Nb3 {[%clk 0:00:13]} 58. Bc4 {[%clk 0:00:02]}  Nd4+ {[%clk 0:00:13]} 59. Ke4 {[%clk 0:00:02]}  Nc6 {[%clk 0:00:13]} 60. Bb5 {[%clk 0:00:03]}  Ne7 {[%clk 0:00:13]} 61. Bc4 {[%clk 0:00:03]}  Ng6 {[%clk 0:00:11]} 62. Bf7 {[%clk 0:00:03]}  Nf4 {[%clk 0:00:11]} 63. Bb3 {[%clk 0:00:04]}  Ne2 {[%clk 0:00:09]} 64. Bc4 {[%clk 0:00:04]}  Ng3+ {[%clk 0:00:08]} 65. Ke3 {[%clk 0:00:04]}  Kc5 {[%clk 0:00:05]} 66. Be6 {[%clk 0:00:04]}  Kd6 {[%clk 0:00:05]} 67. Bc4 {[%clk 0:00:04]}  Ke7 {[%clk 0:00:04]} 68. Kf3 {[%clk 0:00:04]}  Nf5 {[%clk 0:00:03]} 69. Ke4 {[%clk 0:00:05]}  Kf6 {[%clk 0:00:04]} 70. Ba2 {[%clk 0:00:05]}  Ng3+ {[%clk 0:00:03]} 71. Kf3 {[%clk 0:00:05]}  Nf5 {[%clk 0:00:04]} 72. Ke4 {[%clk 0:00:06]}  Nd6+ {[%clk 0:00:04]} 73. Kd5 {[%clk 0:00:06]}  Ne8 {[%clk 0:00:03]} 74. Ke4 {[%clk 0:00:06]}  Nd6+ {[%clk 0:00:04]} 75. Kd5 {[%clk 0:00:06]}  Nf5 {[%clk 0:00:04]} 76. Ke4 {[%clk 0:00:07]} 1/2-1/2

[Event "January 9 Late 2024"]
[Site "https://www.chess.com"]
[Date "2024.01.09"]
[Round "11"]
[White "Anton Guijarro, David"]
[Black "Mekhitarian, Krikor Sevag"]
[Result "1-0"]
[Board "26"]
[TimeControl "180+1"]
[WhiteFideId "2285525"]
[BlackFideId "2107660"]
[WhiteElo "2969"]
[BlackElo "2755"]
[WhiteTeam "ESP"]
[BlackTeam "BRA"]
[WhiteClock "0:00:23"]
[BlackClock "0:00:00"]

1. Nf3 {[%clk 0:02:59]}  d5 {[%clk 0:02:58]} 2. c4 {[%clk 0:02:58]}  d4 {[%clk 0:02:56]} 3. b4 {[%clk 0:02:57]}  c5 {[%clk 0:02:47]} 4. Bb2 {[%clk 0:02:55]}  a6 {[%clk 0:02:46]} 5. e3 {[%clk 0:02:51]}  dxe3 {[%clk 0:02:32]} 6. fxe3 {[%clk 0:02:51]}  cxb4 {[%clk 0:02:32]} 7. d4 {[%clk 0:02:51]}  Nf6 {[%clk 0:02:26]} 8. Bd3 {[%clk 0:02:44]}  g6 {[%clk 0:02:15]} 9. O-O {[%clk 0:02:41]}  Bh6 {[%clk 0:02:15]} 10. e4 {[%clk 0:02:41]}  O-O {[%clk 0:02:09]} 11. Qe2 {[%clk 0:02:38]}  Nh5 {[%clk 0:01:50]} 12. g3 {[%clk 0:02:20]}  Bg4 {[%clk 0:01:46]} 13. a3 {[%clk 0:02:09]}  Bg7 {[%clk 0:01:43]} 14. Qe3 {[%clk 0:02:03]}  Nc6 {[%clk 0:01:38]} 15. Nbd2 {[%clk 0:02:01]}  bxa3 {[%clk 0:01:29]} 16. Rxa3 {[%clk 0:02:02]}  Rc8 {[%clk 0:01:04]} 17. Rb3 {[%clk 0:01:46]}  Na5 {[%clk 0:00:49]} 18. Rb4 {[%clk 0:01:46]}  Qc7 {[%clk 0:00:46]} 19. d5 {[%clk 0:01:30]}  Bxb2 {[%clk 0:00:33]} 20. Rxb2 {[%clk 0:01:31]}  Qc5 {[%clk 0:00:18]} 21. Qxc5 {[%clk 0:01:31]}  Rxc5 {[%clk 0:00:19]} 22. Ne5 {[%clk 0:01:31]}  Bh3 {[%clk 0:00:19]} 23. Ra1 {[%clk 0:01:31]}  Nf6 {[%clk 0:00:15]} 24. Rba2 {[%clk 0:01:27]}  b6 {[%clk 0:00:14]} 25. Rb2 {[%clk 0:01:27]}  Rb8 {[%clk 0:00:13]} 26. Kf2 {[%clk 0:00:32]}  Nd7 {[%clk 0:00:11]} 27. Nxd7 {[%clk 0:00:29]}  Bxd7 {[%clk 0:00:10]} 28. Ke3 {[%clk 0:00:25]}  e5 {[%clk 0:00:05]} 29. Rab1 {[%clk 0:00:26]}  b5 {[%clk 0:00:05]} 30. Ra1 {[%clk 0:00:25]}  Nb7 {[%clk 0:00:02]} 31. Rxa6 {[%clk 0:00:24]}  bxc4 {[%clk 0:00:00]} 32. Nxc4 {[%clk 0:00:23]} 1-0

[Event "January 9 Late 2024"]
[Site "https://www.chess.com"]
[Date "2024.01.09"]
[Round "11"]
[White "Smirnov, Anton"]
[Black "Timmermans, Mark"]
[Result "1-0"]
[Board "27"]
[TimeControl "180+1"]
[WhiteFideId "3208923"]
[BlackFideId "1026399"]
[WhiteElo "2915"]
[BlackElo "2749"]
[WhiteTeam "AUS"]
[BlackTeam "NED"]
[WhiteClock "0:02:09"]
[BlackClock "0:01:55"]

1. e4 {[%clk 0:03:00]}  e5 {[%clk 0:02:59]} 2. Nf3 {[%clk 0:03:00]}  Nc6 {[%clk 0:02:59]} 3. Bb5 {[%clk 0:03:00]}  f5 {[%clk 0:02:58]} 4. d3 {[%clk 0:02:59]}  fxe4 {[%clk 0:02:57]} 5. dxe4 {[%clk 0:03:00]}  Nf6 {[%clk 0:02:57]} 6. O-O {[%clk 0:02:59]}  d6 {[%clk 0:02:56]} 7. Qe2 {[%clk 0:02:58]}  Be7 {[%clk 0:02:52]} 8. Qc4 {[%clk 0:02:57]}  Bd7 {[%clk 0:02:50]} 9. Ng5 {[%clk 0:02:56]}  Rf8 {[%clk 0:02:50]} 10. Nc3 {[%clk 0:02:48]}  h6 {[%clk 0:02:50]} 11. Ne6 {[%clk 0:02:45]}  Bxe6 {[%clk 0:02:50]} 12. Qxe6 {[%clk 0:02:46]}  Qd7 {[%clk 0:02:50]} 13. Qxd7+ {[%clk 0:02:38]}  Kxd7 {[%clk 0:02:50]} 14. f3 {[%clk 0:02:37]}  a6 {[%clk 0:02:50]} 15. Bc4 {[%clk 0:02:37]}  Nd4 {[%clk 0:02:50]} 16. Bd3 {[%clk 0:02:37]}  b5 {[%clk 0:02:45]} 17. Ne2 {[%clk 0:02:37]}  Nxe2+ {[%clk 0:02:42]} 18. Bxe2 {[%clk 0:02:38]}  Nh7 {[%clk 0:02:42]} 19. a4 {[%clk 0:02:37]}  b4 {[%clk 0:02:39]} 20. Be3 {[%clk 0:02:34]}  Bg5 {[%clk 0:02:38]} 21. Bf2 {[%clk 0:02:34]}  Nf6 {[%clk 0:02:32]} 22. a5 {[%clk 0:02:33]}  c5 {[%clk 0:02:28]} 23. Rfd1 {[%clk 0:02:33]}  Kc7 {[%clk 0:02:25]} 24. Bc4 {[%clk 0:02:32]}  Nd7 {[%clk 0:02:25]} 25. Rd3 {[%clk 0:02:32]}  Rad8 {[%clk 0:02:22]} 26. Bxa6 {[%clk 0:02:31]}  Ra8 {[%clk 0:02:18]} 27. Bc4 {[%clk 0:02:30]}  Ra7 {[%clk 0:02:17]} 28. Rad1 {[%clk 0:02:27]}  Be7 {[%clk 0:02:17]} 29. a6 {[%clk 0:02:25]}  Nb8 {[%clk 0:02:17]} 30. c3 {[%clk 0:02:10]}  Nxa6 {[%clk 0:02:09]} 31. Bxa6 {[%clk 0:02:09]}  Rxa6 {[%clk 0:02:09]} 32. Bxc5 {[%clk 0:02:10]}  bxc3 {[%clk 0:02:07]} 33. bxc3 {[%clk 0:02:09]}  Rfa8 {[%clk 0:02:01]} 34. Bb4 {[%clk 0:02:07]}  Ra1 {[%clk 0:01:59]} 35. Bxd6+ {[%clk 0:02:07]}  Bxd6 {[%clk 0:01:59]} 36. Rxd6 {[%clk 0:02:08]}  Rxd1+ {[%clk 0:02:00]} 37. Rxd1 {[%clk 0:02:09]}  Ra2 {[%clk 0:01:55]} 38. Rd5 {[%clk 0:02:09]} 1-0

[Event "January 9 Late 2024"]
[Site "https://www.chess.com"]
[Date "2024.01.09"]
[Round "11"]
[White "Leitao, Rafael"]
[Black "Hess, Robert"]
[Result "0-1"]
[Board "28"]
[TimeControl "180+1"]
[WhiteFideId "2101246"]
[BlackFideId "2022036"]
[WhiteElo "2744"]
[BlackElo "2901"]
[WhiteTeam "BRA"]
[BlackTeam "USA"]
[WhiteClock "0:00:01"]
[BlackClock "0:00:03"]

1. c4 {[%clk 0:03:00]}  d6 {[%clk 0:02:58]} 2. g3 {[%clk 0:02:59]}  c6 {[%clk 0:02:58]} 3. d4 {[%clk 0:02:59]}  Qc7 {[%clk 0:02:59]} 4. Bg2 {[%clk 0:02:58]}  e5 {[%clk 0:03:00]} 5. Nf3 {[%clk 0:02:59]}  Nf6 {[%clk 0:03:01]} 6. Nc3 {[%clk 0:02:59]}  Nbd7 {[%clk 0:03:01]} 7. O-O {[%clk 0:02:59]}  Be7 {[%clk 0:03:02]} 8. e4 {[%clk 0:03:00]}  O-O {[%clk 0:03:02]} 9. Re1 {[%clk 0:03:00]}  Re8 {[%clk 0:03:02]} 10. h3 {[%clk 0:02:54]}  exd4 {[%clk 0:02:59]} 11. Nxd4 {[%clk 0:02:54]}  Bf8 {[%clk 0:03:00]} 12. Qc2 {[%clk 0:02:50]}  a5 {[%clk 0:03:00]} 13. b3 {[%clk 0:02:47]}  Nc5 {[%clk 0:02:56]} 14. Bf4 {[%clk 0:02:40]}  g6 {[%clk 0:02:45]} 15. Rad1 {[%clk 0:02:39]}  Nh5 {[%clk 0:02:45]} 16. Be3 {[%clk 0:02:38]}  Bg7 {[%clk 0:02:38]} 17. Kh2 {[%clk 0:02:31]}  Qe7 {[%clk 0:02:29]} 18. f4 {[%clk 0:02:27]}  Bd7 {[%clk 0:02:20]} 19. Bf2 {[%clk 0:02:26]}  Rad8 {[%clk 0:02:09]} 20. Bf3 {[%clk 0:02:02]}  Bc8 {[%clk 0:01:58]} 21. Bg2 {[%clk 0:01:25]}  Qc7 {[%clk 0:01:34]} 22. a3 {[%clk 0:01:08]}  Nf6 {[%clk 0:01:27]} 23. b4 {[%clk 0:01:04]}  axb4 {[%clk 0:01:28]} 24. axb4 {[%clk 0:01:05]}  Na6 {[%clk 0:01:28]} 25. Rb1 {[%clk 0:01:03]}  Bd7 {[%clk 0:00:54]} 26. Nf3 {[%clk 0:00:58]}  h5 {[%clk 0:00:46]} 27. e5 {[%clk 0:00:56]}  Bf5 {[%clk 0:00:42]} 28. Qb3 {[%clk 0:00:46]}  dxe5 {[%clk 0:00:42]} 29. fxe5 {[%clk 0:00:45]}  Nd7 {[%clk 0:00:36]} 30. Rbd1 {[%clk 0:00:41]}  Nxe5 {[%clk 0:00:32]} 31. Nd4 {[%clk 0:00:33]}  Bc8 {[%clk 0:00:18]} 32. Kh1 {[%clk 0:00:30]}  Nd7 {[%clk 0:00:13]} 33. Ne4 {[%clk 0:00:28]}  Nf6 {[%clk 0:00:12]} 34. Ng5 {[%clk 0:00:20]}  Rxe1+ {[%clk 0:00:11]} 35. Rxe1 {[%clk 0:00:20]}  Nh7 {[%clk 0:00:11]} 36. Ne4 {[%clk 0:00:16]}  Bxd4 {[%clk 0:00:10]} 37. Bxd4 {[%clk 0:00:16]}  Rxd4 {[%clk 0:00:11]} 38. Qc3 {[%clk 0:00:17]}  Qd8 {[%clk 0:00:07]} 39. c5 {[%clk 0:00:13]}  Be6 {[%clk 0:00:07]} 40. Nd6 {[%clk 0:00:13]}  Rxd6 {[%clk 0:00:07]} 41. cxd6 {[%clk 0:00:13]}  Qxd6 {[%clk 0:00:07]} 42. b5 {[%clk 0:00:09]}  cxb5 {[%clk 0:00:08]} 43. Bxb7 {[%clk 0:00:09]}  Nc5 {[%clk 0:00:08]} 44. Bg2 {[%clk 0:00:08]}  Nd7 {[%clk 0:00:04]} 45. Qf3 {[%clk 0:00:07]}  b4 {[%clk 0:00:04]} 46. Rd1 {[%clk 0:00:07]}  Qe7 {[%clk 0:00:03]} 47. Qb7 {[%clk 0:00:07]}  Nhf8 {[%clk 0:00:04]} 48. Rb1 {[%clk 0:00:07]}  Qd6 {[%clk 0:00:03]} 49. Qxb4 {[%clk 0:00:01]}  Qxg3 {[%clk 0:00:03]} 0-1

[Event "January 9 Late 2024"]
[Site "https://www.chess.com"]
[Date "2024.01.09"]
[Round "11"]
[White "Christiansen, Johan-Sebastian"]
[Black "Khatoev, Eduard"]
[Result "0-1"]
[Board "30"]
[TimeControl "180+1"]
[WhiteFideId "1512668"]
[BlackFideId "24145076"]
[WhiteElo "2896"]
[BlackElo "2732"]
[WhiteTeam "NOR"]
[BlackTeam "RUS"]
[WhiteClock "0:00:00"]
[BlackClock "0:00:49"]

1. e4 {[%clk 0:03:00]}  c6 {[%clk 0:02:59]} 2. d4 {[%clk 0:03:00]}  d5 {[%clk 0:03:00]} 3. Nd2 {[%clk 0:03:01]}  dxe4 {[%clk 0:03:00]} 4. Nxe4 {[%clk 0:03:00]}  Bf5 {[%clk 0:03:00]} 5. Ng3 {[%clk 0:03:00]}  Bg6 {[%clk 0:03:00]} 6. h4 {[%clk 0:03:01]}  h6 {[%clk 0:02:59]} 7. Nh3 {[%clk 0:03:01]}  Nf6 {[%clk 0:02:58]} 8. Nf4 {[%clk 0:03:00]}  Bh7 {[%clk 0:02:58]} 9. Bc4 {[%clk 0:02:59]}  e6 {[%clk 0:02:57]} 10. O-O {[%clk 0:02:58]}  Bd6 {[%clk 0:02:56]} 11. Re1 {[%clk 0:02:58]}  Nd5 {[%clk 0:02:50]} 12. Nxe6 {[%clk 0:02:15]}  fxe6 {[%clk 0:02:49]} 13. Rxe6+ {[%clk 0:02:16]}  Kf7 {[%clk 0:02:49]} 14. Qg4 {[%clk 0:02:10]}  Bxg3 {[%clk 0:02:31]} 15. fxg3 {[%clk 0:02:03]}  h5 {[%clk 0:02:15]} 16. Qxh5+ {[%clk 0:01:41]}  Kxe6 {[%clk 0:02:14]} 17. Bg5 {[%clk 0:01:42]}  Qa5 {[%clk 0:02:13]} 18. c3 {[%clk 0:01:29]}  Kd7 {[%clk 0:01:47]} 19. Rf1 {[%clk 0:00:48]}  Kc8 {[%clk 0:01:12]} 20. Rf7 {[%clk 0:00:48]}  Nf6 {[%clk 0:01:10]} 21. Be6+ {[%clk 0:00:27]}  Nbd7 {[%clk 0:01:09]} 22. Rxd7 {[%clk 0:00:11]}  Nxd7 {[%clk 0:01:06]} 23. Bxd7+ {[%clk 0:00:09]}  Kxd7 {[%clk 0:01:07]} 24. Qf7+ {[%clk 0:00:10]}  Kc8 {[%clk 0:01:06]} 25. Qe6+ {[%clk 0:00:09]}  Kc7 {[%clk 0:01:06]} 26. Bf4+ {[%clk 0:00:08]}  Kb6 {[%clk 0:01:06]} 27. b4 {[%clk 0:00:01]}  Qd5 {[%clk 0:01:05]} 28. Qe7 {[%clk 0:00:01]}  Qxa2 {[%clk 0:01:04]} 29. Qc5+ {[%clk 0:00:01]}  Ka6 {[%clk 0:01:03]} 30. c4 {[%clk 0:00:01]}  Qa4 {[%clk 0:01:01]} 31. b5+ {[%clk 0:00:01]}  cxb5 {[%clk 0:01:00]} 32. cxb5+ {[%clk 0:00:02]}  Qxb5 {[%clk 0:01:00]} 33. Qa3+ {[%clk 0:00:02]}  Qa5 {[%clk 0:01:00]} 34. Qd6+ {[%clk 0:00:02]}  b6 {[%clk 0:00:58]} 35. Kh2 {[%clk 0:00:03]}  Be4 {[%clk 0:00:57]} 36. Qe7 {[%clk 0:00:03]}  Rhe8 {[%clk 0:00:55]} 37. Qf7 {[%clk 0:00:02]}  Bxg2 {[%clk 0:00:53]} 38. Qc4+ {[%clk 0:00:02]}  b5 {[%clk 0:00:53]} 39. Qf7 {[%clk 0:00:01]}  Re2 {[%clk 0:00:49]} 40. h5 {[%clk 0:00:01]}  Bd5+ {[%clk 0:00:48]} 41. Kh3 {[%clk 0:00:00]}  Bxf7 {[%clk 0:00:49]} 0-1

[Event "January 9 Late 2024"]
[Site "https://www.chess.com"]
[Date "2024.01.09"]
[Round "11"]
[White "Yurovskykh, Oleksandr"]
[Black "Lobanov, Sergei"]
[Result "1-0"]
[Board "32"]
[TimeControl "180+1"]
[WhiteFideId "14134020"]
[BlackFideId "24183750"]
[WhiteElo "2650"]
[BlackElo "2831"]
[WhiteTeam "UKR"]
[BlackTeam "FID"]
[WhiteClock "0:00:24"]
[BlackClock "0:00:31"]

1. d4 {[%clk 0:02:54]}  Nf6 {[%clk 0:03:00]} 2. Nf3 {[%clk 0:02:52]}  d5 {[%clk 0:03:00]} 3. c3 {[%clk 0:02:51]}  Bf5 {[%clk 0:03:00]} 4. Qb3 {[%clk 0:02:51]}  Qc8 {[%clk 0:03:00]} 5. Bf4 {[%clk 0:02:51]}  e6 {[%clk 0:03:00]} 6. e3 {[%clk 0:02:51]}  h6 {[%clk 0:03:00]} 7. Nbd2 {[%clk 0:02:51]}  Nbd7 {[%clk 0:02:59]} 8. Be2 {[%clk 0:02:45]}  Bd6 {[%clk 0:02:54]} 9. O-O {[%clk 0:02:37]}  Bxf4 {[%clk 0:02:54]} 10. exf4 {[%clk 0:02:38]}  O-O {[%clk 0:02:54]} 11. Rfe1 {[%clk 0:02:38]}  c5 {[%clk 0:02:53]} 12. dxc5 {[%clk 0:02:38]}  Nxc5 {[%clk 0:02:51]} 13. Qa3 {[%clk 0:02:34]}  Nd3 {[%clk 0:02:24]} 14. Bxd3 {[%clk 0:02:33]}  Bxd3 {[%clk 0:02:25]} 15. Ne5 {[%clk 0:02:33]}  Bh7 {[%clk 0:02:25]} 16. Rac1 {[%clk 0:02:30]}  Nd7 {[%clk 0:02:21]} 17. Nxd7 {[%clk 0:02:29]}  Qxd7 {[%clk 0:02:21]} 18. Nf3 {[%clk 0:02:29]}  Rfd8 {[%clk 0:02:17]} 19. Nd4 {[%clk 0:02:26]}  a6 {[%clk 0:02:12]} 20. Re5 {[%clk 0:02:23]}  Rac8 {[%clk 0:02:11]} 21. Rce1 {[%clk 0:02:23]}  Be4 {[%clk 0:02:02]} 22. f3 {[%clk 0:02:19]}  Bg6 {[%clk 0:01:58]} 23. g4 {[%clk 0:01:59]}  Bd3 {[%clk 0:01:31]} 24. R1e3 {[%clk 0:01:57]}  Bb1 {[%clk 0:01:30]} 25. Re1 {[%clk 0:01:56]}  Bh7 {[%clk 0:01:26]} 26. f5 {[%clk 0:01:45]}  Kh8 {[%clk 0:01:22]} 27. fxe6 {[%clk 0:01:44]}  fxe6 {[%clk 0:01:23]} 28. Rxe6 {[%clk 0:01:44]}  Rf8 {[%clk 0:01:21]} 29. Re7 {[%clk 0:01:40]}  Qd8 {[%clk 0:01:21]} 30. Rxb7 {[%clk 0:01:32]}  Qh4 {[%clk 0:01:20]} 31. Qe7 {[%clk 0:01:21]}  Qxe7 {[%clk 0:01:19]} 32. Rexe7 {[%clk 0:01:22]}  Rg8 {[%clk 0:01:19]} 33. Kf2 {[%clk 0:01:16]}  Bb1 {[%clk 0:01:19]} 34. a3 {[%clk 0:01:15]}  a5 {[%clk 0:01:14]} 35. Ne6 {[%clk 0:01:15]}  Rge8 {[%clk 0:01:04]} 36. Rxe8+ {[%clk 0:01:09]}  Rxe8 {[%clk 0:01:04]} 37. Nxg7 {[%clk 0:01:09]}  Re5 {[%clk 0:01:01]} 38. Nf5 {[%clk 0:01:05]}  Bxf5 {[%clk 0:00:57]} 39. gxf5 {[%clk 0:01:06]}  Rxf5 {[%clk 0:00:58]} 40. Rb5 {[%clk 0:01:06]}  Rh5 {[%clk 0:00:59]} 41. Kg3 {[%clk 0:00:58]}  Rg5+ {[%clk 0:00:50]} 42. Kf4 {[%clk 0:00:42]}  a4 {[%clk 0:00:50]} 43. h4 {[%clk 0:00:39]}  Rg2 {[%clk 0:00:46]} 44. Rb4 {[%clk 0:00:39]}  Kg7 {[%clk 0:00:43]} 45. Ke5 {[%clk 0:00:39]}  Rd2 {[%clk 0:00:42]} 46. Rxa4 {[%clk 0:00:37]}  Rxb2 {[%clk 0:00:42]} 47. Kxd5 {[%clk 0:00:37]}  Rb3 {[%clk 0:00:43]} 48. Kc4 {[%clk 0:00:33]}  Rb2 {[%clk 0:00:41]} 49. Rb4 {[%clk 0:00:33]}  Rh2 {[%clk 0:00:41]} 50. Kb5 {[%clk 0:00:32]}  Rf2 {[%clk 0:00:41]} 51. Rf4 {[%clk 0:00:26]}  Rb2+ {[%clk 0:00:39]} 52. Kc4 {[%clk 0:00:25]}  Kg6 {[%clk 0:00:36]} 53. a4 {[%clk 0:00:25]}  Kh5 {[%clk 0:00:37]} 54. a5 {[%clk 0:00:24]}  Ra2 {[%clk 0:00:37]} 55. Kb4 {[%clk 0:00:24]}  Rb2+ {[%clk 0:00:37]} 56. Kc5 {[%clk 0:00:24]}  Ra2 {[%clk 0:00:37]} 57. Kb5 {[%clk 0:00:24]}  Rb2+ {[%clk 0:00:36]} 58. Rb4 {[%clk 0:00:25]}  Rf2 {[%clk 0:00:36]} 59. f4 {[%clk 0:00:24]}  Kxh4 {[%clk 0:00:36]} 60. a6 {[%clk 0:00:25]}  Ra2 {[%clk 0:00:31]} 61. Ra4 {[%clk 0:00:23]}  Rb2+ {[%clk 0:00:32]} 62. Kc6 {[%clk 0:00:24]}  Rb8 {[%clk 0:00:31]} 63. a7 {[%clk 0:00:24]}  Ra8 {[%clk 0:00:31]} 64. Kb7 {[%clk 0:00:24]} 1-0